fUSD/lending_fUSD_20260509
["ID","MTS","AMOUNT","RATE_DAILY","PERIOD"]
[421895117,1778308231000,-151.0,0.0001511,2]
[421895116,1778308231000,-61.17591483,0.0001511,2]
[421895128,1778308231000,-1469.66509176,0.0001511,2]
[421895115,1778308231000,-91.82408517,0.0001511,2]
[421895118,1778308231000,-500.0,0.0001511,2]
[421895129,1778308231000,-150.0,0.0001511,2]
[421895127,1778308231000,-253.46543089,0.0001511,2]
[421895145,1778308231000,-89.4377703,0.00015495,2]
[421895146,1778308231000,-851.12712388,0.00015495,2]
[421895144,1778308231000,-256.48,0.00015483,2]
[421895131,1778308231000,-151.0,0.00015111,2]
[421895142,1778308231000,-763.0,0.00015435,2]
[421895140,1778308231000,-151.0,0.0001521,2]
[421895138,1778308231000,-150.0,0.0001521,2]
[421895139,1778308231000,-153.0,0.0001521,2]
[421895141,1778308231000,-208.0536425,0.00015216,2]
[421895135,1778308231000,-156.54769763,0.00015159,2]
[421895137,1778308231000,-150.0,0.0001521,2]
[421895133,1778308231000,-150.0,0.00015122,2]
[421895134,1778308231000,-162.73097414,0.00015122,2]
[421895132,1778308231000,-150.0,0.00015113,2]
[421895130,1778308231000,-153.0,0.0001511,2]
[421895136,1778308231000,-150.0,0.00015159,2]
[421895165,1778308237000,-838.62889428,0.0001585,2]
[421895163,1778308237000,-200.0,0.00015694,2]
[421895162,1778308237000,-181.43,0.00015664,2]
[421895164,1778308237000,-1789.65,0.00015787,2]
[421895160,1778308237000,-384.33291447,0.00015562,2]
[421895166,1778308237000,-609.39692594,0.0001585,2]
[421895158,1778308237000,-20521.38776388,0.00015562,2]
[421895156,1778308237000,-535.41792625,0.00015495,2]
[421895157,1778308237000,-1580.42866119,0.00015495,2]
[421895155,1778308237000,-760.11851838,0.00015495,2]
[421895159,1778308237000,-380.52932165,0.00015562,2]
[421895169,1778308237000,-151.0,0.00016066,2]
[421895161,1778308237000,-150.0,0.00015573,2]
[421895168,1778308237000,-151.0,0.00016066,2]
[421895179,1778308237000,-394.34616947,0.00016066,2]
[421895181,1778308237000,-151.0,0.00016066,2]
[421895178,1778308237000,-151.0,0.00016066,2]
[421895176,1778308237000,-151.0,0.00016066,2]
[421895177,1778308237000,-500.0,0.00016066,2]
[421895175,1778308237000,-357.17383053,0.00016066,2]
[421895167,1778308237000,-979.15417978,0.0001585,2]
[421895174,1778308237000,-142.82616947,0.00016066,2]
[421895173,1778308237000,-151.0,0.00016066,2]
[421895171,1778308237000,-151.0,0.00016066,2]
[421895180,1778308237000,-105.65383053,0.00016066,2]
[421895170,1778308237000,-151.0,0.00016066,2]
[421895172,1778308237000,-151.0,0.00016066,2]
[421895182,1778308238000,-500.0,0.00016066,2]
[421895184,1778308238000,-500.0,0.00016066,2]
[421895183,1778308238000,-500.0,0.00016066,2]
[421895185,1778308238000,-1223.8821993,0.00016066,2]
[421895199,1778308238000,-150.0,0.00016348,2]
[421895201,1778308238000,-150.0,0.00016348,2]
[421895189,1778308238000,-1352.0,0.00016076,2]
[421895203,1778308238000,-151.97565158,0.00016348,2]
[421895193,1778308238000,-150.99,0.00016116,2]
[421895197,1778308238000,-150.0,0.00016348,2]
[421895186,1778308238000,-1269.0,0.00016076,2]
[421895195,1778308238000,-214.73073128,0.00016234,2]
[421895191,1778308238000,-624.0,0.00016076,2]
[421895222,1778308238000,-557.49671702,0.00016578,2]
[421895220,1778308238000,-655.3761068,0.00016578,2]
[421895218,1778308238000,-211.67015744,0.00016438,2]
[421895215,1778308238000,-1169.12984256,0.00016438,2]
[421895213,1778308238000,-150.0,0.00016348,2]
[421895187,1778308238000,-1222.0,0.00016076,2]
[421895205,1778308238000,-150.00000001,0.00016348,2]
[421895209,1778308238000,-150.0,0.00016348,2]
[421895207,1778308238000,-150.0,0.00016348,2]
[421895211,1778308238000,-150.0,0.00016348,2]
[421895224,1778308238000,-1076.55582393,0.00016578,2]
[421895675,1778308241000,-5000.0,0.00017609,2]
[421895677,1778308241000,-26176.5965,0.00017609,2]
[421895669,1778308241000,-500.0,0.00017315,2]
[421895681,1778308241000,-2599.41426763,0.00017609,2]
[421895679,1778308241000,-2500.0,0.00017609,2]
[421895673,1778308241000,-260.0,0.00017573,2]
[421895672,1778308241000,-1600.08,0.00017572,2]
[421895665,1778308241000,-150.0,0.00017256,2]
[421895662,1778308241000,-517.0,0.00017,2]
[421895667,1778308241000,-150.0,0.00017256,2]
[421895651,1778308241000,-2500.0,0.00016578,2]
[421895652,1778308241000,-250.0,0.0001662,2]
[421895654,1778308241000,-300.0,0.00016816,2]
[421895658,1778308241000,-2969.58,0.00016922,2]
[421895656,1778308241000,-1000.0,0.00016822,2]
[421895660,1778308241000,-19323.39,0.00016922,2]
[421895647,1778308241000,-2500.0,0.00016578,2]
[421895645,1778308241000,-2500.0,0.00016578,2]
[421895644,1778308241000,-210.57135225,0.00016578,2]
[421895683,1778308241000,-517.0,0.00017636,2]
[421895663,1778308241000,-150.0,0.00017256,2]
[421895649,1778308241000,-2500.0,0.00016578,2]
[421895688,1778308241000,-500.0,0.00017708,2]
[421895691,1778308241000,-500.0,0.00017708,2]
[421895727,1778308241000,-2458.50849633,0.00017709,2]
[421895735,1778308241000,-652.08200092,0.00017709,2]
[421895724,1778308241000,-3046.82868942,0.00017709,2]
[421895722,1778308241000,-127276.70847993,0.00017709,2]
[421895732,1778308241000,-2939.67300539,0.00017709,2]
[421895729,1778308241000,-300.13246974,0.00017709,2]
[421895720,1778308241000,-150.0,0.00017708,2]
[421895685,1778308241000,-192.96371619,0.00017699,2]
[421895718,1778308241000,-628.26602406,0.00017708,2]
[421895701,1778308241000,-500.0,0.00017708,2]
[421895703,1778308241000,-500.0,0.00017708,2]
[421895716,1778308241000,-500.0,0.00017708,2]
[421895689,1778308241000,-276.09405819,0.00017708,2]
[421895714,1778308241000,-166.5879826,0.00017708,2]
[421895706,1778308241000,-500.0,0.00017708,2]
[421895712,1778308241000,-290.95605424,0.00017708,2]
[421895693,1778308241000,-500.0,0.00017708,2]
[421895710,1778308241000,-500.0,0.00017708,2]
[421895695,1778308241000,-500.0,0.00017708,2]
[421895708,1778308241000,-500.0,0.00017708,2]
[421895699,1778308241000,-500.0,0.00017708,2]
[421895697,1778308241000,-500.0,0.00017708,2]
[421895891,1778308242000,-1407.88020428,0.00017709,2]
[421895899,1778308242000,-405160.00000047,0.00017709,2]
[421895875,1778308242000,-852.61665438,0.00017709,2]
[421895877,1778308242000,-299.58495437,0.00017709,2]
[421895883,1778308242000,-730.12479506,0.00017709,2]
[421896201,1778308245000,-925.0,0.00016234,2]
[421896203,1778308245000,-128.44978251,0.00017709,2]
[421896221,1778308245000,-2304.0,0.00017709,2]
[421896219,1778308245000,-402.46038659,0.00017709,2]
[421896229,1778308245000,-4015.0,0.00017709,2]
[421896211,1778308245000,-3003.96077769,0.00017709,2]
[421896280,1778308246000,-370.45,0.00017709,2]
[421896282,1778308246000,-1774.4866,0.00017709,2]
[421896273,1778308246000,-1668.73,0.00017709,2]
[421896271,1778308246000,-707.16647587,0.00017709,2]
[421896492,1778308559000,-1630.59,0.00041999,120]
[421896490,1778308559000,-1630.59,0.00041999,120]
[421896489,1778308559000,-1630.59,0.00041999,120]
[421896488,1778308559000,-1630.59,0.00041999,120]
[421896487,1778308559000,-1630.59,0.00041999,120]
[421896485,1778308559000,-1630.59,0.00041999,120]
[421896486,1778308559000,-1630.59,0.00041999,120]
[421896484,1778308559000,-1630.59,0.00041999,120]
[421896483,1778308559000,-1630.59,0.00041999,120]
[421896480,1778308559000,-1630.59,0.00041999,120]
[421896482,1778308559000,-1630.59,0.00041999,120]
[421896477,1778308559000,-1630.59,0.00041999,120]
[421896479,1778308559000,-1630.59,0.00041999,120]
[421896478,1778308559000,-1630.59,0.00041999,120]
[421896476,1778308559000,-1630.59,0.00041999,120]
[421896474,1778308559000,-2396.13410629,0.00041999,30]
[421896475,1778308559000,-2761.07945525,0.00041999,30]
[421896491,1778308559000,-1630.59,0.00041999,120]
[421896481,1778308559000,-1630.59,0.00041999,120]
[421896493,1778308559000,-1630.59,0.00041999,120]
[421896495,1778308559000,-1630.59,0.00041999,120]
[421896514,1778308559000,-1000000.0,0.00041999,30]
[421896496,1778308559000,-1630.59,0.00041999,120]
[421896511,1778308559000,-1000000.0,0.00041999,30]
[421896512,1778308559000,-1000000.0,0.00041999,30]
[421896510,1778308559000,-100000.0,0.00041999,30]
[421896507,1778308559000,-1005.38851185,0.00041999,120]
[421896509,1778308559000,-3181.87927643,0.00041999,30]
[421896508,1778308559000,-2904.63749079,0.00041999,30]
[421896506,1778308559000,-1243.0,0.00041999,30]
[421896503,1778308559000,-2503.33702751,0.00041999,30]
[421896513,1778308559000,-1000000.0,0.00041999,30]
[421896504,1778308559000,-12172.9842346,0.00041999,120]
[421896502,1778308559000,-2794.55501825,0.00041999,30]
[421896501,1778308559000,-2610.02878555,0.00041999,30]
[421896500,1778308559000,-3019.98558012,0.00041999,30]
[421896498,1778308559000,-1630.59,0.00041999,120]
[421896499,1778308559000,-1630.63507495,0.00041999,120]
[421896497,1778308559000,-1630.59,0.00041999,120]
[421896494,1778308559000,-1630.59,0.00041999,120]
[421896505,1778308559000,-2482.24631929,0.00041999,30]
[421896516,1778308560000,-1000000.0,0.00041999,30]
[421896515,1778308560000,-1000000.0,0.00041999,30]
[421896518,1778308560000,-1000000.0,0.00041999,30]
[421896519,1778308560000,-821790.53911912,0.00041999,30]
[421896517,1778308560000,-1000000.0,0.00041999,30]
[421896530,1778308576000,-4955054.82122059,0.0003,120]
[421896529,1778308576000,-41929.4346,0.000298,120]
[421896527,1778308576000,-316.91,0.00028219,120]
[421896528,1778308576000,-316.91,0.00028877,120]
[421896526,1778308576000,-316.91,0.00027397,120]
[421896525,1778308576000,-154.41,0.00024743,120]
[421896524,1778308576000,-500.0,0.00022411,120]
[421896523,1778308576000,-500.0,0.00022311,120]
[421896522,1778308576000,-217.93637421,0.00022296,120]
[421896521,1778308576000,-192.6678052,0.00022296,120]
[421896520,1778308576000,-500.0,0.00021918,120]
[421896532,1778308580000,-826.3,0.0003,120]
[421896533,1778308580000,-160.0,0.0003,120]
[421896531,1778308580000,-1771936.0248283,0.0003,120]
[421896546,1778308601000,-225.43,0.00019272,30]
[421896534,1778308601000,-3301.8,0.00019202,30]
[421896535,1778308601000,-227.05,0.00019202,30]
[421896537,1778308601000,-225.43,0.00019202,30]
[421896538,1778308601000,-214.73073128,0.00019237,30]
[421896539,1778308601000,-3301.8,0.00019237,30]
[421896536,1778308601000,-2897.88,0.00019202,30]
[421896541,1778308601000,-2897.88,0.00019237,30]
[421896542,1778308601000,-225.43,0.00019237,30]
[421896544,1778308601000,-227.05,0.00019272,30]
[421896543,1778308601000,-3301.8,0.00019272,30]
[421896545,1778308601000,-2897.88,0.00019272,30]
[421896547,1778308601000,-3301.8,0.00019306,30]
[421896540,1778308601000,-227.05,0.00019237,30]
[421896557,1778308602000,-2897.88,0.00019376,30]
[421896563,1778308602000,-4952.7,0.00024658,30]
[421896562,1778308602000,-4952.7,0.00024658,30]
[421896561,1778308602000,-4952.7,0.00024658,30]
[421896560,1778308602000,-750.0,0.00024098,30]
[421896559,1778308602000,-150.0,0.00024024,30]
[421896558,1778308602000,-225.43,0.00019376,30]
[421896554,1778308602000,-225.43,0.00019341,30]
[421896549,1778308602000,-2897.88,0.00019306,30]
[421896555,1778308602000,-3301.8,0.00019376,30]
[421896553,1778308602000,-2897.88,0.00019341,30]
[421896550,1778308602000,-225.43,0.00019306,30]
[421896551,1778308602000,-3301.8,0.00019341,30]
[421896552,1778308602000,-227.05,0.00019341,30]
[421896548,1778308602000,-227.05,0.00019306,30]
[421896564,1778308602000,-4952.7,0.00024658,30]
[421896556,1778308602000,-227.05,0.00019376,30]
[421896566,1778308602000,-340.58,0.00024658,30]
[421896582,1778308602000,-953.772,0.00030137,120]
[421896567,1778308602000,-4346.82,0.00024658,30]
[421896584,1778308602000,-3363.0,0.00030137,120]
[421896565,1778308602000,-340.58,0.00024658,30]
[421896583,1778308602000,-969.84954683,0.00030137,120]
[421896581,1778308602000,-2575.0,0.000301,30]
[421896580,1778308602000,-489.0,0.0003,60]
[421896578,1778308602000,-160.0,0.000285,30]
[421896577,1778308602000,-319.09245593,0.00027905,30]
[421896576,1778308602000,-319.09245593,0.000273,30]
[421896579,1778308602000,-180.93883686,0.0003,30]
[421896573,1778308602000,-214.73073128,0.00025,30]
[421896574,1778308602000,-287.57,0.000257,30]
[421896572,1778308602000,-338.15,0.00024658,30]
[421896571,1778308602000,-338.15,0.00024658,30]
[421896570,1778308602000,-4346.82,0.00024658,30]
[421896568,1778308602000,-4346.82,0.00024658,30]
[421896569,1778308602000,-4346.82,0.00024658,30]
[421896575,1778308602000,-868.05,0.000257,30]
[421896595,1778308603000,-156.0,0.00030999,30]
[421896604,1778308603000,-156.0,0.00031999,30]
[421896602,1778308603000,-1210.0,0.00031997,30]
[421896600,1778308603000,-186.0,0.00031997,30]
[421896599,1778308603000,-220.0,0.00030999,30]
[421896598,1778308603000,-323.0,0.00030999,30]
[421896597,1778308603000,-710.0,0.00030999,30]
[421896596,1778308603000,-156.0,0.00030999,30]
[421896586,1778308603000,-1368.8669458,0.00030137,120]
[421896591,1778308603000,-186.0,0.00030997,30]
[421896593,1778308603000,-1210.0,0.00030997,30]
[421896592,1778308603000,-394.0,0.00030997,30]
[421896590,1778308603000,-822.95,0.00030694,30]
[421896589,1778308603000,-189.11,0.00030411,120]
[421896588,1778308603000,-3000.0,0.000303,30]
[421896587,1778308603000,-951.94334729,0.00030137,120]
[421896585,1778308603000,-100000.0,0.00030137,120]
[421896605,1778308603000,-156.0,0.00031999,30]
[421896594,1778308603000,-363.0,0.00030997,30]
[421896601,1778308603000,-394.0,0.00031997,30]
[421896606,1778308603000,-710.0,0.00031999,30]
[421896608,1778308603000,-220.0,0.00031999,30]
[421896603,1778308603000,-363.0,0.00031997,30]
[421896624,1778308603000,-394.0,0.00032997,30]
[421896625,1778308603000,-1210.0,0.00032997,30]
[421896623,1778308603000,-186.0,0.00032997,30]
[421896622,1778308603000,-762.54990901,0.000329,120]
[421896621,1778308603000,-2000.0,0.00032877,30]
[421896619,1778308603000,-1568.21,0.000323,120]
[421896618,1778308603000,-1904.02,0.000323,120]
[421896617,1778308603000,-1150.3,0.000323,120]
[421896620,1778308603000,-2000.0,0.00032877,30]
[421896615,1778308603000,-168.33046933,0.00032,120]
[421896614,1778308603000,-1912.34921797,0.00032,120]
[421896612,1778308603000,-199.51250758,0.00032,120]
[421896613,1778308603000,-365.30101854,0.00032,120]
[421896611,1778308603000,-505.62715358,0.00032,120]
[421896610,1778308603000,-416.75417843,0.00032,120]
[421896607,1778308603000,-323.0,0.00031999,30]
[421896616,1778308603000,-160.0,0.000321,33]
[421896609,1778308603000,-583.711,0.00032,100]
[421896638,1778308604000,-1912.34921797,0.00033,120]
[421896639,1778308604000,-168.33046933,0.00033,120]
[421896643,1778308604000,-505.62715358,0.000339,120]
[421896641,1778308604000,-188.89,0.000334,30]
[421896642,1778308604000,-416.75417843,0.000339,120]
[421896637,1778308604000,-365.30101854,0.00033,120]
[421896640,1778308604000,-160.0,0.000331,37]
[421896636,1778308604000,-199.51250758,0.00033,120]
[421896626,1778308604000,-363.0,0.00032997,30]
[421896635,1778308604000,-505.62715358,0.00033,120]
[421896632,1778308604000,-160.0,0.00033,120]
[421896634,1778308604000,-416.75417843,0.00033,120]
[421896629,1778308604000,-710.0,0.00032999,30]
[421896630,1778308604000,-323.0,0.00032999,30]
[421896628,1778308604000,-156.0,0.00032999,30]
[421896627,1778308604000,-156.0,0.00032999,30]
[421896644,1778308604000,-199.51250758,0.000339,120]
[421896633,1778308604000,-2668.0,0.00033,120]
[421896647,1778308604000,-168.33046933,0.000339,120]
[421896631,1778308604000,-220.0,0.00032999,30]
[421896645,1778308604000,-365.30101854,0.000339,120]
[421896646,1778308604000,-1912.34921797,0.000339,120]
[421896665,1778308604000,-394.0,0.00034997,30]
[421896664,1778308604000,-186.0,0.00034997,30]
[421896663,1778308604000,-8372.79,0.00034544,60]
[421896662,1778308604000,-1600.08,0.00034544,60]
[421896661,1778308604000,-1555.06,0.00034544,60]
[421896658,1778308604000,-160.0,0.000345,120]
[421896659,1778308604000,-423.47,0.00034544,60]
[421896657,1778308604000,-160.0,0.000341,40]
[421896660,1778308604000,-239.94,0.00034544,60]
[421896654,1778308604000,-710.0,0.00033999,30]
[421896655,1778308604000,-323.0,0.00033999,30]
[421896653,1778308604000,-156.0,0.00033999,30]
[421896652,1778308604000,-156.0,0.00033999,30]
[421896651,1778308604000,-363.0,0.00033997,30]
[421896650,1778308604000,-1210.0,0.00033997,30]
[421896649,1778308604000,-394.0,0.00033997,30]
[421896656,1778308604000,-220.0,0.00033999,30]
[421896648,1778308604000,-186.0,0.00033997,30]
[421896679,1778308605000,-1912.34921797,0.00035,120]
[421896680,1778308605000,-168.33046933,0.00035,120]
[421896678,1778308605000,-365.30101854,0.00035,120]
[421896685,1778308605000,-188.89,0.000352,30]
[421896682,1778308605000,-150.0,0.00035,30]
[421896677,1778308605000,-505.62715358,0.00035,120]
[421896681,1778308605000,-3007.27985921,0.00035,120]
[421896676,1778308605000,-416.75417843,0.00035,120]
[421896666,1778308605000,-1210.0,0.00034997,30]
[421896674,1778308605000,-31731.0,0.00035,30]
[421896675,1778308605000,-3472.04,0.00035,30]
[421896672,1778308605000,-220.0,0.00034999,30]
[421896670,1778308605000,-710.0,0.00034999,30]
[421896671,1778308605000,-323.0,0.00034999,30]
[421896669,1778308605000,-156.0,0.00034999,30]
[421896668,1778308605000,-156.0,0.00034999,30]
[421896667,1778308605000,-363.0,0.00034997,30]
[421896684,1778308605000,-160.0,0.000351,44]
[421896673,1778308605000,-150.0,0.00035,120]
[421896683,1778308605000,-290.753375,0.00035004,30]
[421896692,1778308605000,-500.0,0.00035774,30]
[421896688,1778308605000,-151.0,0.00035774,30]
[421896706,1778308605000,-1210.0,0.00035997,30]
[421896703,1778308605000,-482.42688762,0.000359,120]
[421896704,1778308605000,-186.0,0.00035997,30]
[421896705,1778308605000,-394.0,0.00035997,30]
[421896699,1778308605000,-151.0,0.00035889,30]
[421896687,1778308605000,-153.22957956,0.00035616,60]
[421896702,1778308605000,-194.72792766,0.00035889,30]
[421896700,1778308605000,-500.0,0.00035889,30]
[421896695,1778308605000,-151.0,0.00035889,30]
[421896701,1778308605000,-152.0,0.00035889,30]
[421896697,1778308605000,-1328.27659266,0.00035889,30]
[421896696,1778308605000,-500.0,0.00035889,30]
[421896694,1778308605000,-201.93286098,0.00035774,30]
[421896693,1778308605000,-153.53245003,0.00035774,30]
[421896690,1778308605000,-334.42278892,0.00035774,30]
[421896691,1778308605000,-151.0,0.00035774,30]
[421896689,1778308605000,-528.56540136,0.00035774,30]
[421896686,1778308605000,-3000.0,0.000355,30]
[421896698,1778308605000,-200.0,0.00035889,30]
[421896716,1778308606000,-1912.34921797,0.00036,120]
[421896720,1778308606000,-1280.88388878,0.00036023,30]
[421896718,1778308606000,-151.0,0.00036023,30]
[421896723,1778308606000,-151.0,0.00036023,30]
[421896719,1778308606000,-500.0,0.00036023,30]
[421896722,1778308606000,-2305.21472904,0.00036023,30]
[421896717,1778308606000,-168.33046933,0.00036,120]
[421896715,1778308606000,-365.30101854,0.00036,120]
[421896721,1778308606000,-200.0,0.00036023,30]
[421896714,1778308606000,-505.62715358,0.00036,120]
[421896711,1778308606000,-323.0,0.00035999,30]
[421896712,1778308606000,-220.0,0.00035999,30]
[421896710,1778308606000,-710.0,0.00035999,30]
[421896709,1778308606000,-156.0,0.00035999,30]
[421896708,1778308606000,-156.0,0.00035999,30]
[421896707,1778308606000,-363.0,0.00035997,30]
[421896713,1778308606000,-416.75417843,0.00036,120]
[421896724,1778308606000,-500.0,0.00036023,30]
[421896737,1778308606000,-152.0,0.00036152,30]
[421896726,1778308606000,-187.78006525,0.00036023,30]
[421896744,1778308606000,-7965.41053268,0.00036199,30]
[421896743,1778308606000,-200.0,0.00036199,30]
[421896740,1778308606000,-151.0,0.00036199,30]
[421896741,1778308606000,-500.0,0.00036199,30]
[421896742,1778308606000,-1191.11104075,0.00036199,30]
[421896739,1778308606000,-1265.7,0.00036153,30]
[421896738,1778308606000,-181.08010149,0.00036152,30]
[421896736,1778308606000,-500.0,0.00036152,30]
[421896725,1778308606000,-152.0,0.00036023,30]
[421896733,1778308606000,-200.0,0.00036152,30]
[421896734,1778308606000,-8260.13072239,0.00036152,30]
[421896732,1778308606000,-1235.18214925,0.00036152,30]
[421896730,1778308606000,-151.0,0.00036152,30]
[421896731,1778308606000,-500.0,0.00036152,30]
[421896729,1778308606000,-160.0,0.000361,48]
[421896728,1778308606000,-194.53048764,0.00036079,30]
[421896727,1778308606000,-208.01739694,0.00036079,30]
[421896735,1778308606000,-151.0,0.00036152,30]
[421896757,1778308607000,-1210.0,0.00036997,30]
[421896758,1778308607000,-363.0,0.00036997,30]
[421896760,1778308607000,-500.0,0.00036999,30]
[421896761,1778308607000,-1148.61238259,0.00036999,30]
[421896759,1778308607000,-151.0,0.00036999,30]
[421896755,1778308607000,-186.0,0.00036997,30]
[421896756,1778308607000,-394.0,0.00036997,30]
[421896752,1778308607000,-149970.0,0.000367,120]
[421896750,1778308607000,-152.0,0.00036199,30]
[421896751,1778308607000,-174.61919141,0.00036199,30]
[421896754,1778308607000,-150.0091974,0.00036783,120]
[421896749,1778308607000,-245.86611252,0.00036199,30]
[421896748,1778308607000,-500.0,0.00036199,30]
[421896747,1778308607000,-151.0,0.00036199,30]
[421896745,1778308607000,-344.86029024,0.00036199,30]
[421896762,1778308607000,-200.0,0.00036999,30]
[421896753,1778308607000,-156.03,0.00036712,60]
[421896764,1778308607000,-7681.20591386,0.00036999,30]
[421896746,1778308607000,-727.32804149,0.00036199,30]
[421896765,1778308607000,-220.0,0.00036999,30]
[421896781,1778308607000,-185.62782338,0.00037,120]
[421896782,1778308607000,-371.4253,0.00037,60]
[421896779,1778308607000,-217.03483486,0.00037,120]
[421896780,1778308607000,-469.0,0.00037,120]
[421896777,1778308607000,-220.0,0.00036999,30]
[421896776,1778308607000,-323.0,0.00036999,30]
[421896778,1778308607000,-188.89,0.00037,30]
[421896775,1778308607000,-710.0,0.00036999,30]
[421896783,1778308607000,-151.0,0.00037023,30]
[421896773,1778308607000,-156.32339733,0.00036999,30]
[421896772,1778308607000,-168.3888056,0.00036999,30]
[421896766,1778308607000,-691.39774486,0.00036999,30]
[421896767,1778308607000,-151.0,0.00036999,30]
[421896769,1778308607000,-1000.0,0.00036999,30]
[421896763,1778308607000,-557.5788265,0.00036999,30]
[421896768,1778308607000,-500.0,0.00036999,30]
[421896771,1778308607000,-168.3888056,0.00036999,30]
[421896774,1778308607000,-166.85828628,0.00036999,30]
[421896770,1778308607000,-152.0,0.00036999,30]
[421896799,1778308608000,-1912.34921797,0.000371,120]
[421896797,1778308608000,-162.380719,0.00037023,30]
[421896795,1778308608000,-162.380719,0.00037023,30]
[421896798,1778308608000,-160.0,0.000371,52]
[421896796,1778308608000,-296.22546227,0.00037023,30]
[421896794,1778308608000,-152.0,0.00037023,30]
[421896793,1778308608000,-1000.0,0.00037023,30]
[421896790,1778308608000,-666.72878,0.00037023,30]
[421896791,1778308608000,-151.0,0.00037023,30]
[421896789,1778308608000,-220.0,0.00037023,30]
[421896786,1778308608000,-200.0,0.00037023,30]
[421896787,1778308608000,-537.6845,0.00037023,30]
[421896785,1778308608000,-1107.63007,0.00037023,30]
[421896784,1778308608000,-500.0,0.00037023,30]
[421896800,1778308608000,-2000.0,0.0003711,60]
[421896792,1778308608000,-500.0,0.00037023,30]
[421896788,1778308608000,-7407.141672,0.00037023,30]
[421896801,1778308608000,-191.26444496,0.000372,120]
[421896804,1778308608000,-500.0,0.000374,120]
[421896802,1778308608000,-191.26444495,0.000372,120]
[421896819,1778308608000,-1444.0,0.00037753,120]
[421896818,1778308608000,-63893.0,0.000377,30]
[421896817,1778308608000,-868.05,0.000375,90]
[421896815,1778308608000,-287.57,0.000375,90]
[421896813,1778308608000,-202.0,0.000375,30]
[421896814,1778308608000,-287.57,0.000375,60]
[421896811,1778308608000,-3000.0,0.000375,30]
[421896816,1778308608000,-868.05,0.000375,60]
[421896810,1778308608000,-150.0,0.00037443,60]
[421896808,1778308608000,-1190.0,0.000374,30]
[421896809,1778308608000,-150.0,0.00037403,120]
[421896807,1778308608000,-3000.0,0.000374,30]
[421896806,1778308608000,-3000.0,0.000374,30]
[421896803,1778308608000,-2000.0,0.00037261,120]
[421896805,1778308608000,-3000.0,0.000374,30]
[421896812,1778308608000,-150.0,0.000375,120]
[421896830,1778308609000,-1068.11,0.00037972,30]
[421896837,1778308609000,-500.0,0.00037972,30]
[421896835,1778308609000,-642.94,0.00037972,30]
[421896832,1778308609000,-518.5,0.00037972,30]
[421896834,1778308609000,-220.0,0.00037972,30]
[421896831,1778308609000,-200.0,0.00037972,30]
[421896833,1778308609000,-7142.856,0.00037972,30]
[421896829,1778308609000,-500.0,0.00037972,30]
[421896821,1778308609000,-194.8444135,0.00037805,120]
[421896827,1778308609000,-530.36835542,0.00037972,30]
[421896826,1778308609000,-201.07654,0.0003781,120]
[421896825,1778308609000,-261.2811879,0.00037805,120]
[421896823,1778308609000,-264.7342598,0.00037805,120]
[421896824,1778308609000,-150.2050717,0.00037805,120]
[421896822,1778308609000,-269.7488686,0.00037805,120]
[421896820,1778308609000,-188.89,0.000378,30]
[421896836,1778308609000,-151.0,0.00037972,30]
[421896828,1778308609000,-151.0,0.00037972,30]
[421896838,1778308609000,-1000.0,0.00037972,30]